bitfinex/quotes_SOLUSD_20251224
["timestamp","ask_amount","ask_price","bid_price","bid_amount"]
[1766541789686,2.66630101,122.92,122.89,0.69]
[1766541790501,11.00171373,122.92,122.88,0.89]
[1766541790709,2.86630101,122.91,122.88,0.2]
[1766541791402,2.66630101,122.9,122.88,0.2]
[1766541791983,1.71029382,122.9,122.88,0.2]
[1766541792204,1.91029382,122.91,122.88,0.89]
[1766541793786,1.91029382,122.91,122.88,9.0279812]
[1766541794112,1.91029382,122.92,122.89,0.69]
[1766541794412,1.71029382,122.93,122.89,0.69]
[1766541794992,1.91029382,122.94,122.9,0.69]
[1766541795499,1.71029382,122.94,122.9,0.69]
[1766541795692,10.63767296,122.95,122.91,0.69]
[1766541795892,1.71029382,122.94,122.91,0.69]
[1766541796724,10.63767296,122.95,122.91,0.69]
[1766541796908,1.71029382,122.94,122.91,0.69]
[1766541798217,1.71029382,122.94,122.91,8.82594318]
[1766541798517,10.63767296,122.95,122.91,8.82594318]
[1766541798701,1.71029382,122.96,122.92,0.69]
[1766541798896,20.32780376,122.99,122.93,1.71029382]
[1766541798897,0.2,122.99,122.93,1.71029382]
[1766541799105,26.12534977,122.99,122.95,0.69]
[1766541799308,1.71029382,122.99,122.95,0.69]
[1766541799612,0.2,123.0,122.95,0.69]
[1766541799817,1.71029382,122.99,122.96,0.69]
[1766541800518,1.91029382,123.0,122.96,0.69]
[1766541801296,1.71029382,123.0,122.96,0.69]
[1766541801699,27.00796678,123.01,122.97,0.69]
[1766541801894,27.00796678,123.01,122.98,0.69]
[1766541801895,10.43767296,123.01,122.98,0.69]
[1766541802109,1.71029382,123.03,122.99,0.69]
[1766541802424,1.91029382,123.03,122.99,0.69]
[1766541802609,1.71029382,123.02,122.99,0.69]
[1766541804021,1.91029382,123.03,122.99,8.82056393]
[1766541804321,0.2,123.03,122.99,8.82056393]
[1766541804524,1.91029382,123.03,122.99,8.82056393]
[1766541808218,10.03839846,123.03,122.99,0.69]
[1766541809121,8.32810464,123.03,122.99,0.69]
[1766541809323,1.71029382,123.02,122.99,0.69]
[1766541809623,8.32810464,123.03,122.99,0.69]
[1766541809827,1.71029382,123.02,122.99,0.69]
[1766541810006,1.91029382,123.01,122.97,0.69]
[1766541810622,1.71029382,123.0,122.97,0.69]
[1766541810807,1.91029382,123.0,122.97,0.69]
[1766541811722,1.91029382,123.0,122.96,0.69]
[1766541813923,10.04053159,123.0,122.96,0.69]
[1766541814228,1.91029382,122.99,122.96,0.69]
[1766541814436,1.71029382,122.98,122.95,0.67]
[1766541814810,1.71029382,122.98,122.94,8.13377827]
[1766541814811,1.91029382,122.97,122.93,0.67]
[1766541815010,1.91029382,122.97,122.93,8.80465743]
[1766541815225,1.91029382,122.97,122.94,0.67]
[1766541815432,10.04239299,122.97,122.94,0.67]
[1766541815624,1.91029382,122.97,122.94,0.67]
[1766541815825,10.04243656,122.97,122.94,0.67]
[1766541816331,0.2,122.97,122.94,0.67]
[1766541816512,1.71029382,122.97,122.94,0.67]
[1766541817913,10.04197038,122.98,122.94,0.67]
[1766541818533,1.91029382,122.98,122.94,8.13402307]
[1766541818747,16.75029382,122.99,122.95,0.68]
[1766541819120,1.71029382,122.98,122.95,0.68]
[1766541820318,1.71029382,122.98,122.95,8.81338624]
[1766541820913,1.71029382,122.98,122.95,8.13338624]
[1766541821116,0.2,122.99,122.95,8.81338624]
[1766541821311,1.71029382,122.99,122.96,0.68]
[1766541821940,1.71029382,123.0,122.96,0.68]
[1766541822117,1.71029382,123.01,122.98,0.68]
[1766541822434,1.91029382,123.02,122.98,0.68]
[1766541822831,0.2,123.02,122.98,0.68]
[1766541823043,1.71029382,123.01,122.98,0.68]
[1766541824553,8.32892991,123.02,122.98,0.68]
[1766541824753,1.71029382,123.01,122.98,0.68]
[1766541825243,1.71029382,123.0,122.98,0.68]
[1766541825454,1.91029382,123.0,122.97,0.68]
[1766541825632,0.2,123.01,122.97,8.81190723]
[1766541825829,1.71029382,123.01,122.98,0.68]
[1766541827535,1.91029382,123.01,122.98,0.68]
[1766541829352,1.71029382,123.01,122.98,0.68]
[1766541830550,1.71029382,123.0,122.98,0.68]
[1766541830929,8.12964719,123.01,122.95,0.68]
[1766541830930,0.2,122.99,122.95,0.68]
[1766541831139,1.91029382,122.98,122.95,0.68]
[1766541831538,1.71029382,122.97,122.94,0.68]
[1766541831846,1.91029382,122.95,122.91,0.68]
[1766541832150,1.71029382,122.94,122.91,0.68]
[1766541832647,16.55029382,122.96,122.92,0.68]
[1766541833254,1.71029382,122.95,122.92,0.68]
[1766541833457,8.33319801,122.96,122.92,8.81533908]
[1766541833656,1.71029382,122.95,122.92,0.68]
[1766541834553,15.04,122.96,122.92,8.81497781]
[1766541834726,1.71029382,122.95,122.92,0.68]
[1766541834931,1.71029382,122.93,122.9,8.81640756]
[1766541835127,1.71029382,122.93,122.9,8.13640756]
[1766541835332,1.71029382,122.93,122.91,0.68]
[1766541835826,1.71029382,122.95,122.92,0.68]
[1766541837850,23.17275987,122.96,122.92,0.68]
[1766541838054,1.71029382,122.94,122.92,0.68]
[1766541839447,1.71029382,122.94,122.91,0.68]
[1766541839746,1.71029382,122.93,122.89,8.81697073]
[1766541839944,8.33408084,122.94,122.9,0.68]
[1766541840354,1.71029382,122.93,122.9,8.81668092]
[1766541840649,1.91029382,122.94,122.9,8.13661623]
[1766541840849,1.71029382,122.94,122.91,0.68]
[1766541841349,0.2,122.94,122.9,0.68]
[1766541841540,1.71029382,122.93,122.9,8.13665208]
[1766541841738,0.2,122.94,122.88,12.34796678]
[1766541841939,0.2,122.94,122.91,0.68]
[1766541842151,1.91029382,122.93,122.89,0.68]
[1766541842352,8.13418218,122.94,122.88,0.2]
[1766541842353,1.91029382,122.92,122.88,0.2]
[1766541842649,1.71029382,122.91,122.88,0.88]
[1766541842837,1.91029382,122.91,122.88,0.88]
[1766541843431,1.91029382,122.9,122.88,0.2]
[1766541844053,1.71029382,122.9,122.88,0.2]
[1766541845253,1.71029382,122.9,122.88,0.88]
[1766541845754,1.71029382,122.9,122.88,0.2]
[1766541845955,1.91029382,122.91,122.88,0.88]
[1766541846145,1.71029382,122.91,122.88,0.88]
[1766541848445,1.71029382,122.91,122.88,8.33798987]
[1766541848757,1.71029382,122.91,122.89,0.7]
[1766541849159,1.71029382,122.91,122.88,0.2]
[1766541849353,1.71029382,122.9,122.88,0.2]
[1766541849662,1.91029382,122.91,122.88,0.2]
[1766541850035,1.71029382,122.91,122.89,0.7]
[1766541850541,1.71029382,122.92,122.89,0.7]
[1766541851965,2.67183621,122.92,122.89,0.7]
[1766541852656,8.33496956,122.93,122.89,0.7]
[1766541852861,2.67183621,122.92,122.89,0.7]
[1766541854859,2.87183621,122.91,122.88,0.2]
[1766541855156,2.67183621,122.9,122.88,0.2]
[1766541855763,2.87183621,122.91,122.88,0.2]
[1766541857062,11.0079619,122.91,122.88,0.2]
[1766541857258,8.33550168,122.92,122.88,0.9]
[1766541857463,2.87183621,122.92,122.88,9.03792245]
[1766541857763,11.00725521,122.92,122.88,0.9]
[1766541858261,2.87183621,122.92,122.88,9.03787231]
[1766541858456,2.87183621,122.92,122.89,0.7]
[1766541858658,2.67183621,122.92,122.89,0.7]
[1766541859747,10.80731074,122.92,122.89,0.7]
[1766541860269,2.67183621,122.92,122.9,0.7]
[1766541860500,2.67183621,122.91,122.88,9.0378691]
[1766541860704,2.67183621,122.91,122.88,0.9]
[1766541862173,8.3354877,122.92,122.88,0.9]
[1766541862472,2.67183621,122.91,122.88,0.9]
[1766541865873,2.87183621,122.91,122.88,0.9]
[1766541868194,0.2,122.91,122.88,0.9]
[1766541868565,2.87183621,122.91,122.88,0.9]
[1766541870396,8.13506362,122.93,122.88,8.33759324]
[1766541870569,2.87183621,122.92,122.89,0.7]
[1766541872774,21.44365831,122.94,122.9,0.7]
[1766541872976,2.67183621,122.95,122.9,3.37183621]
[1766541873189,2.67183621,122.95,122.91,0.7]
[1766541873792,2.67183621,122.94,122.91,0.7]
[1766541873993,2.87183621,122.94,122.91,0.7]
[1766541874391,8.334054,122.94,122.91,0.7]
[1766541874587,2.67183621,122.93,122.91,0.7]
[1766541875099,0.2,122.94,122.91,0.7]
[1766541875305,2.87183621,122.94,122.91,0.7]
[1766541876700,0.2,122.94,122.91,0.7]
[1766541876898,2.87183621,122.94,122.91,0.7]
[1766541879102,11.00601232,122.94,122.91,0.7]
[1766541879697,2.67183621,122.93,122.89,8.13704893]
[1766541879898,2.67183621,122.91,122.88,0.92]
[1766541880284,0.2,122.92,122.88,9.05762982]
[1766541880490,2.67183621,122.91,122.88,9.05762982]
[1766541880692,2.87183621,122.92,122.88,8.33762982]
[1766541880895,2.87183621,122.92,122.89,0.72]
[1766541881399,2.67183621,122.9,122.88,0.2]
[1766541881774,0.2,122.91,122.88,0.92]
[1766541881977,2.87183621,122.91,122.88,0.92]
[1766541885107,2.87183621,122.91,122.88,9.05795522]
[1766541885785,2.67183621,122.91,122.88,8.33795522]
[1766541885987,2.67183621,122.91,122.89,0.72]
[1766541886210,15.06,122.92,122.89,0.72]
[1766541886401,2.67183621,122.91,122.89,0.72]
[1766541887807,8.1360551,122.91,122.88,0.2]
[1766541887983,2.87183621,122.9,122.88,0.2]
[1766541888694,2.67183621,122.89,122.88,0.2]
[1766541888902,2.87183621,122.9,122.88,0.2]
[1766541891489,2.67183621,122.89,122.86,8.13887061]
[1766541891800,2.67183621,122.89,122.86,8.85887061]
[1766541892003,2.67183621,122.9,122.87,0.72]
[1766541893199,2.67183621,122.9,122.87,8.85861975]
[1766541893613,8.13620374,122.91,122.87,8.85861975]
[1766541893793,2.67183621,122.9,122.87,8.85861975]
[1766541894209,2.67183621,122.9,122.87,0.72]
[1766541894610,2.67183621,122.9,122.87,8.85857606]
[1766541894999,2.67183621,122.9,122.87,0.72]
[1766541896418,2.67183621,122.9,122.87,8.85863876]
[1766541897305,22.99620374,122.91,122.87,8.85863876]
[1766541897601,2.67183621,122.9,122.87,8.85863876]
[1766541898312,2.67183621,122.91,122.87,0.72]
[1766541899709,2.67183621,122.9,122.87,0.72]
[1766541900315,2.67183621,122.9,122.87,8.13862868]
[1766541900530,2.67183621,122.9,122.88,0.72]
[1766541900816,22.99569079,122.92,122.88,0.72]
[1766541901017,2.67183621,122.9,122.88,0.72]
[1766541903519,2.67183621,122.9,122.87,0.72]
[1766541904722,2.67183621,122.9,122.86,8.85903048]
[1766541905621,2.67183621,122.9,122.87,0.72]
[1766541906615,2.67183621,122.91,122.88,0.72]
[1766541907417,17.53183621,122.92,122.88,0.72]
[1766541907808,2.67183621,122.92,122.88,0.72]
[1766541908916,2.67183621,122.92,122.89,0.71]
[1766541911104,22.99474497,122.93,122.89,0.71]
[1766541911511,2.67183621,122.92,122.89,0.71]
[1766541912018,2.67183621,122.91,122.89,0.71]
[1766541913227,18.57177147,122.94,122.9,0.71]
[1766541913406,36.10367361,122.94,122.9,0.71]
[1766541913605,2.67183621,122.93,122.9,0.71]
[1766541913923,1.70982605,122.92,122.89,8.84719587]
[1766541914913,1.70982605,122.92,122.89,8.13719587]
[1766541915095,1.70982605,122.93,122.9,0.71]
[1766541916024,1.70982605,122.92,122.87,24.70828737]
[1766541916224,1.70982605,122.91,122.88,0.71]
[1766541916425,1.70982605,122.9,122.87,0.71]
[1766541916625,1.70982605,122.89,122.87,0.71]
[1766541916923,1.70982605,122.9,122.87,0.71]
[1766541917732,24.70631911,122.91,122.87,0.71]
[1766541918921,1.70982605,122.9,122.87,0.71]
[1766541921318,24.70631911,122.91,122.87,0.71]
[1766541923056,16.56982605,122.91,122.87,8.84866052]
[1766541923239,16.56982605,122.91,122.88,0.71]
[1766541923445,14.86,122.91,122.88,0.71]
[1766541923637,20.33797495,122.93,122.88,0.71]
[1766541923638,8.13490109,122.93,122.88,0.71]
[1766541923841,9.84472714,122.93,122.89,0.71]
[1766541924341,1.70982605,122.93,122.89,0.71]
[1766541926632,1.70982605,122.93,122.89,8.84735775]
[1766541927248,1.70982605,122.93,122.9,0.71]
[1766541928454,9.84465602,122.93,122.9,0.71]
[1766541928824,1.70982605,122.92,122.89,0.71]
[1766541929530,9.84520285,122.92,122.89,0.71]
[1766541931139,8.13471081,122.93,122.89,0.71]
[1766541931342,1.70982605,122.92,122.89,0.71]
[1766541934671,8.13471081,122.93,122.89,0.71]
[1766541934838,1.70982605,122.92,122.89,0.71]
[1766541937372,1.70982605,122.93,122.9,0.71]
[1766541937767,33.431888,122.94,122.9,0.71]
[1766541937966,1.70982605,122.93,122.9,0.71]
[1766541938973,9.84463177,122.93,122.9,0.71]
[1766541939446,1.70982605,122.92,122.9,0.71]
[1766541940071,8.13480572,122.93,122.9,0.71]
[1766541940274,1.70982605,122.92,122.9,0.71]
[1766541940585,8.13480572,122.93,122.9,0.71]
[1766541940773,1.70982605,122.92,122.9,0.71]
[1766541941967,1.70982605,122.92,122.87,8.13853386]
[1766541942174,1.70982605,122.91,122.88,0.71]
[1766541942547,9.8459816,122.91,122.88,0.71]
[1766541943058,1.70982605,122.9,122.87,0.71]
[1766541944971,9.84653181,122.9,122.87,0.71]
[1766541946058,1.70982605,122.89,122.87,0.71]
[1766541946374,24.70590266,122.91,122.87,0.71]
[1766541946666,24.70590266,122.91,122.88,0.71]
[1766541946849,12.14749901,122.91,122.88,0.71]
[1766541947252,10.43767296,122.91,122.88,0.71]
[1766541947773,18.57372106,122.91,122.86,0.71]
[1766541947948,1.70982605,122.89,122.86,0.71]
[1766541948148,18.57372106,122.91,122.86,0.71]
[1766541948549,1.70982605,122.89,122.86,0.71]
[1766541953001,10.43767296,122.86,122.83,0.91]
[1766541953277,10.43767296,122.88,122.84,0.71]
[1766541953454,1.70982605,122.88,122.85,0.71]
[1766541953860,12.14749901,122.89,122.86,0.71]
[1766541954675,10.43767296,122.89,122.86,0.71]
[1766541954874,12.14749901,122.89,122.86,0.71]
[1766541957792,10.43767296,122.89,122.86,0.71]
[1766541958080,12.14749901,122.89,122.86,0.71]
[1766541961398,1.70982605,122.88,122.86,0.71]
[1766541962396,1.70982605,122.88,122.84,0.71]
[1766541962766,9.84793981,122.88,122.84,0.71]
[1766541963289,1.70982605,122.87,122.84,0.71]
[1766541963591,1.70982605,122.86,122.83,0.91]
[1766541964692,43.34316584,122.88,122.83,0.91]
[1766541964882,1.70982605,122.86,122.84,0.71]
[1766541965085,1.70982605,122.87,122.84,0.71]
[1766541965485,24.70793981,122.88,122.84,0.71]
[1766541965797,1.70982605,122.87,122.84,0.71]
[1766541966095,8.79868316,122.87,122.83,0.2]
[1766541966285,2.36982605,122.86,122.83,0.2]
[1766541968200,2.36982605,122.86,122.83,0.88]
[1766541968682,1.70982605,122.85,122.83,0.88]
[1766541969303,10.50917484,122.86,122.83,0.88]
[1766541970806,0.66,122.86,122.83,0.88]
[1766541971105,1.70982605,122.86,122.84,0.68]
[1766541971285,2.39982605,122.86,122.83,0.88]
[1766541971683,1.70982605,122.85,122.83,0.88]
[1766541972699,2.39982605,122.86,122.83,0.88]
[1766541974202,3.36431486,122.86,122.83,0.88]
[1766541974401,2.67431486,122.85,122.83,0.88]
[1766541975812,0.69,122.86,122.83,0.88]
[1766541976105,2.67431486,122.85,122.84,0.68]
[1766541977405,2.67431486,122.86,122.84,0.68]
[1766541977982,8.82897173,122.91,122.85,0.68]
[1766541978187,2.67431486,122.9,122.85,2.67431486]
[1766541978407,0.69,122.9,122.87,0.68]
[1766541978587,3.36431486,122.9,122.87,0.68]
[1766541978894,2.67431486,122.9,122.87,0.68]
[1766541980001,15.55,122.91,122.87,0.68]
[1766541980206,2.67431486,122.9,122.87,0.68]
[1766541980717,15.55,122.91,122.87,8.81823848]
[1766541980893,15.55,122.91,122.88,0.68]
[1766541980894,18.22431486,122.91,122.88,0.68]
[1766541981425,2.67431486,122.9,122.88,0.68]
[1766541983191,15.55,122.91,122.88,0.68]
[1766541983192,14.86,122.91,122.88,0.68]
[1766541983420,10.43767296,122.93,122.89,0.68]
[1766541983598,2.67431486,122.92,122.89,0.68]
[1766541985115,13.11198782,122.93,122.9,0.68]
[1766541986923,10.43767296,122.93,122.9,0.68]
[1766541987130,13.11198782,122.93,122.9,0.68]
[1766541987323,0.69,122.97,122.91,0.68]
[1766541987625,2.67431486,122.95,122.91,0.68]
[1766541988611,8.82184082,122.98,122.92,2.67431486]
[1766541988906,2.67431486,122.97,122.94,0.68]
[1766541990106,19.25951378,122.98,122.94,0.68]
[1766541990313,2.67431486,122.97,122.94,0.68]
[1766541990713,2.67431486,122.96,122.94,0.68]
[1766541991325,2.67431486,122.95,122.92,0.68]
[1766541991514,2.67431486,122.94,122.92,0.68]
[1766541992110,2.67431486,122.93,122.9,0.68]
[1766541992309,2.67431486,122.92,122.9,0.68]
[1766541992834,2.67431486,122.92,122.88,0.68]
[1766541993019,0.69,122.91,122.88,0.68]
[1766541993233,2.67431486,122.93,122.89,0.68]
[1766541993411,2.67431486,122.92,122.89,0.68]
[1766541997137,0.7,122.93,122.89,0.68]
[1766541997433,2.67431486,122.92,122.89,0.68]
[1766541998432,2.67431486,122.91,122.89,0.68]
[1766541999724,2.67431486,122.92,122.89,0.68]
[1766542002220,0.7,122.93,122.89,8.81734167]
[1766542002546,2.67431486,122.92,122.9,0.72]
[1766542003641,2.67431486,122.93,122.9,0.72]
[1766542003840,2.67431486,122.94,122.91,0.72]
[1766542005543,2.67431486,122.96,122.91,3.39431486]
[1766542005841,2.67431486,122.96,122.93,0.72]
[1766542007339,22.99177072,122.98,122.93,0.72]
[1766542007547,0.69,122.98,122.93,0.72]
[1766542007763,0.69,122.98,122.95,0.72]
[1766542008046,2.67431486,122.97,122.95,0.72]
[1766542008628,2.67431486,122.98,122.95,0.72]
[1766542009148,33.42800092,123.0,122.95,0.72]
[1766542009331,0.69,123.01,122.96,0.72]
[1766542009644,2.67431486,123.01,122.97,0.72]
[1766542009835,2.67431486,123.01,122.98,0.72]
[1766542010359,0.1,123.02,122.98,0.72]
[1766542010668,2.77431486,123.02,122.99,0.72]
[1766542010955,3.36431486,123.0,122.97,0.72]
[1766542011245,2.67431486,123.0,122.97,0.72]
[1766542012143,0.69,123.0,122.97,0.72]
[1766542012648,2.67431486,122.99,122.97,0.72]
[1766542013750,0.69,123.0,122.97,0.72]
[1766542013947,2.67431486,122.99,122.97,0.72]
[1766542014149,0.69,123.0,122.97,0.72]
[1766542014351,2.67431486,122.99,122.97,0.72]
[1766542015040,2.77431486,123.02,122.98,0.72]
[1766542015549,0.1,123.02,122.99,0.72]
[1766542016447,0.1,123.02,122.99,8.85029064]
[1766542016642,0.1,123.02,123.0,0.72]
[1766542017761,2.67431486,123.01,122.98,8.13123007]
[1766542017957,2.67431486,123.01,122.98,8.85123007]
[1766542018163,2.67431486,123.01,123.0,0.72]
[1766542018363,2.77431486,123.02,123.0,0.72]
[1766542020344,0.1,123.02,123.0,0.72]
[1766542020952,2.77431486,123.02,123.0,0.72]
[1766542021665,3.36431486,123.01,122.97,0.72]
[1766542021964,2.67431486,123.0,122.97,0.72]
[1766542022464,3.36431486,122.98,122.94,8.13385522]
[1766542022655,10.43767296,122.99,122.94,8.13385522]
[1766542022656,2.67431486,122.99,122.94,2.67431486]
[1766542022840,2.67431486,122.99,122.95,8.85312955]
[1766542023044,2.67431486,122.99,122.96,0.72]
[1766542023767,2.67431486,122.98,122.94,8.13381835]
[1766542023954,2.67431486,122.98,122.95,0.72]
[1766542024966,3.36431486,122.98,122.95,0.72]
[1766542025855,3.36431486,122.98,122.95,8.85336094]
[1766542026056,2.67431486,122.98,122.95,8.85336094]
[1766542026257,0.69,122.99,122.95,8.85336094]
[1766542026452,2.67431486,122.99,122.96,0.72]
[1766542026659,17.51431486,123.0,122.96,0.72]
[1766542026967,2.67431486,123.0,122.96,0.72]
[1766542027167,3.48431486,123.02,122.98,0.71]
[1766542028252,3.48431486,123.02,122.98,8.84137216]
[1766542028877,2.67431486,123.01,122.98,8.84137216]
[1766542033157,0.1,123.02,122.99,0.71]
[1766542034578,1.80679477,123.02,122.99,0.71]
[1766542039083,1.70679477,123.01,122.99,0.71]
[1766542040579,1.70679477,123.01,122.98,0.71]
[1766542041281,1.70679477,123.01,122.98,8.84140047]
[1766542041684,0.81,123.02,122.99,0.71]
[1766542041852,1.70679477,123.01,122.99,0.71]
[1766542042875,2.51679477,123.02,122.99,0.71]
[1766542043455,1.70679477,123.01,122.99,0.71]
[1766542044966,2.51679477,123.02,122.99,0.71]
[1766542045960,2.51679477,123.02,122.99,8.84067322]
[1766542046159,0.1,123.02,123.0,0.71]
[1766542048909,0.1,123.02,123.01,0.71]
[1766542051183,0.1,123.03,123.01,0.71]
[1766542051859,0.1,123.03,123.02,0.71]
[1766542055288,0.1,123.03,123.02,8.83875955]
[1766542055498,0.1,123.05,123.03,0.67]
[1766542056696,0.1,123.05,123.04,0.67]
[1766542057108,0.69,123.04,123.02,8.12846484]
[1766542057471,2.49679477,123.05,123.02,8.12846484]
[1766542057697,2.49679477,123.05,123.02,8.78846484]
[1766542058072,0.79,123.05,123.02,8.78846484]
[1766542058274,2.49679477,123.05,123.02,8.78846484]
[1766542058702,0.79,123.05,123.02,8.78846484]
[1766542058906,2.49679477,123.05,123.02,8.78846484]
[1766542061601,0.1,123.05,123.02,8.12846484]
[1766542061797,0.1,123.05,123.03,0.66]
[1766542062915,0.1,123.05,123.04,0.66]
[1766542063121,2.49679477,123.07,123.04,0.66]
[1766542063690,2.49679477,123.07,123.03,8.12783438]
[1766542063691,0.69,123.04,122.97,0.66]
[1766542063894,1.70679477,122.99,122.97,0.66]
[1766542064118,1.70679477,122.98,122.95,8.79311693]
[1766542064488,2.39679477,122.99,122.95,8.79311693]
[1766542064703,2.39679477,122.99,122.96,0.66]
[1766542064901,1.70679477,122.98,122.96,0.66]
[1766542066008,2.39679477,122.99,122.96,0.66]
[1766542067612,8.12962663,123.01,122.94,8.13384954]
[1766542067613,1.70679477,122.97,122.94,8.13384954]
[1766542067916,1.70679477,122.95,122.92,8.79481055]
[1766542068124,1.70679477,122.95,122.92,0.66]
[1766542068293,2.39679477,122.95,122.92,0.66]
[1766542068492,0.69,122.95,122.92,0.66]
[1766542068710,2.39679477,122.95,122.92,0.66]
[1766542070313,1.70679477,122.94,122.92,0.66]
[1766542075327,2.39679477,122.95,122.92,0.66]
[1766542076721,1.70679477,122.94,122.9,0.66]
[1766542076940,2.39679477,122.93,122.9,0.66]
[1766542078721,1.70679477,122.93,122.9,0.66]
[1766542079014,1.70679477,122.93,122.9,0.16]
[1766542079622,2.39679477,122.93,122.9,0.16]
[1766542080138,1.70679477,122.93,122.88,10.43767296]
[1766542080309,0.69,122.92,122.83,0.2]
[1766542080503,1.70679477,122.88,122.85,8.14000814]
[1766542080700,1.70679477,122.88,122.84,9.84736854]
[1766542080921,0.69,122.87,122.83,24.90790411]
[1766542081104,10.43767296,122.9,122.84,9.84719292]
[1766542081303,1.70679477,122.91,122.86,1.70679477]
[1766542081603,2.39679477,122.9,122.87,0.66]
[1766542081804,0.69,122.9,122.87,0.66]
[1766542082119,2.39679477,122.9,122.87,0.66]
[1766542082525,2.39679477,122.89,122.86,0.66]
[1766542083201,0.69,122.89,122.86,8.79930301]
[1766542083904,2.39679477,122.9,122.86,8.79930301]
[1766542084530,1.70679477,122.87,122.83,10.63767296]
[1766542084714,2.39679477,122.87,122.84,0.66]
[1766542085118,1.70679477,122.87,122.84,0.66]
[1766542085538,2.39679477,122.88,122.84,0.16]
[1766542086412,2.39679477,122.87,122.83,0.2]
[1766542086613,0.69,122.85,122.83,0.2]
[1766542087134,2.39679477,122.85,122.83,0.2]
[1766542087438,0.69,122.85,122.83,0.2]
[1766542088253,2.39679477,122.85,122.83,0.2]
[1766542088622,0.7,122.84,122.83,0.2]
[1766542089213,0.7,122.83,122.79,23.20383584]
[1766542089435,0.7,122.83,122.79,17.43679477]
[1766542089642,0.7,122.84,122.81,0.67]
[1766542090326,2.40679477,122.84,122.81,0.67]
[1766542090519,0.7,122.84,122.81,0.67]
[1766542090727,2.40679477,122.84,122.81,0.67]
[1766542091612,0.7,122.84,122.81,0.67]
[1766542091822,2.40679477,122.84,122.81,0.67]
[1766542092240,0.7,122.84,122.81,0.67]
[1766542093238,0.7,122.86,122.82,1.70679477]
[1766542093536,0.7,122.86,122.83,0.67]
[1766542093743,0.7,122.88,122.84,2.37679477]
[1766542094934,0.7,122.88,122.84,9.84743557]
[1766542095145,18.5745365,122.9,122.85,2.37679477]
[1766542095344,0.7,122.89,122.85,2.37679477]
[1766542095645,0.7,122.89,122.86,2.37679477]
[1766542096021,0.7,122.89,122.86,3.34239832]
[1766542096420,0.7,122.89,122.86,0.67]
[1766542097243,3.37239832,122.89,122.86,0.67]
[1766542098320,0.7,122.89,122.86,0.67]
[1766542099242,3.37239832,122.89,122.85,8.80972012]
[1766542099544,0.7,122.88,122.85,8.80972012]
[1766542099745,0.7,122.88,122.84,8.14057863]
[1766542099949,0.7,122.88,122.82,35.21482909]
[1766542099950,0.7,122.87,122.83,3.34239832]
[1766542100321,0.7,122.87,122.83,11.48351826]
[1766542100754,0.7,122.87,122.83,8.81111994]
[1766542100938,0.7,122.87,122.83,11.48351826]
[1766542101333,0.7,122.87,122.84,2.67239832]
[1766542101640,0.7,122.87,122.84,3.34239832]
[1766542103749,0.7,122.87,122.84,11.48287576]
[1766542104463,0.7,122.87,122.84,8.81047744]
[1766542105443,0.7,122.87,122.84,11.48287576]
[1766542106352,0.7,122.87,122.85,2.67239832]
[1766542106658,0.7,122.9,122.87,0.67]
[1766542106953,0.7,122.9,122.86,2.67239832]
[1766542107150,0.7,122.89,122.85,3.34239832]
[1766542108152,3.37239832,122.89,122.85,8.80969912]
[1766542108351,0.7,122.88,122.84,8.14013104]
[1766542108560,0.7,122.88,122.84,8.81013104]
[1766542108743,0.7,122.88,122.84,11.48252936]
[1766542109253,3.37239832,122.88,122.84,8.81013104]
[1766542109452,0.7,122.87,122.84,11.48252936]